bitfinex/quotes_BTCUSD_20250527
["timestamp","ask_amount","ask_price","bid_price","bid_amount"]
[1748356665450,0.0408973,109390.0,109380.0,1.44255167]
[1748356665660,0.03175604,109390.0,109380.0,1.44255167]
[1748356665877,0.2237302,109390.0,109380.0,0.34]
[1748356666096,0.2237302,109390.0,109380.0,0.53199113]
[1748356666305,0.2237302,109390.0,109380.0,0.34]
[1748356666516,0.21458902,109390.0,109380.0,0.34]
[1748356666955,0.01347393,109390.0,109380.0,0.34]
[1748356667162,0.00616879,109390.0,109380.0,0.88857903]
[1748356667374,0.00616879,109390.0,109380.0,1.39497903]
[1748356667588,0.05,109400.0,109390.0,1.04253243]
[1748356667775,0.05,109400.0,109390.0,1.13358638]
[1748356668039,0.0501487,109400.0,109390.0,1.15728996]
[1748356668246,0.0501487,109400.0,109390.0,1.16643097]
[1748356668463,0.05928871,109400.0,109390.0,1.13358638]
[1748356668684,0.05928888,109400.0,109390.0,1.13358638]
[1748356668914,0.05928888,109400.0,109390.0,1.04253243]
[1748356669209,0.251245,109400.0,109390.0,0.027415]
[1748356669453,0.251245,109400.0,109390.0,0.20111484]
[1748356669659,0.20111492,109390.0,109380.0,0.66580813]
[1748356669874,0.01828286,109390.0,109380.0,0.32580813]
[1748356670084,0.21025594,109390.0,109380.0,0.72580813]
[1748356670289,0.03656481,109390.0,109380.0,0.74409224]
[1748356670501,0.21939687,109390.0,109380.0,0.74409241]
[1748356670712,0.03656481,109390.0,109380.0,1.09323443]
[1748356670916,0.21939745,109390.0,109380.0,1.09323443]
[1748356671128,0.2102566,109390.0,109380.0,0.95026578]
[1748356671335,0.2102566,109390.0,109380.0,0.93199105]
[1748356671544,0.2102566,109390.0,109380.0,0.93199113]
[1748356671808,0.00914118,109390.0,109380.0,0.95941726]
[1748356672010,0.21939711,109390.0,109380.0,0.95027541]
[1748356672665,0.21025618,109390.0,109380.0,0.95027541]
[1748356672882,0.02742412,109390.0,109380.0,0.95941743]
[1748356673095,0.21939778,109390.0,109380.0,0.94113331]
[1748356673313,0.24210473,109400.0,109390.0,0.53197349]
[1748356673542,0.07756999,109400.0,109390.0,0.54111475]
[1748356673755,0.07756999,109400.0,109390.0,0.95025585]
[1748356673756,0.2695261,109400.0,109390.0,0.95025585]
[1748356674427,0.25124549,109400.0,109390.0,0.74]
[1748356674644,0.0592893,109400.0,109390.0,1.03216878]
[1748356674863,0.0501487,109400.0,109390.0,1.04130988]
[1748356675072,0.06842965,109400.0,109390.0,1.05045089]
[1748356675291,0.26952594,109400.0,109390.0,0.95025601]
[1748356675562,0.26952594,109400.0,109390.0,0.61025601]
[1748356676698,0.0501487,109400.0,109390.0,0.61939711]
[1748356676927,0.08670975,109400.0,109390.0,1.27120471]
[1748356677161,0.08670975,109400.0,109390.0,1.26313971]
[1748356677591,0.095224,109400.0,109390.0,1.26313971]
[1748356677822,0.09522406,109400.0,109390.0,0.77086312]
[1748356678064,0.09522406,109400.0,109390.0,0.80370771]
[1748356678065,0.07756915,109400.0,109390.0,0.80370771]
[1748356678319,0.08670975,109400.0,109390.0,0.80370771]
[1748356678724,0.08670975,109400.0,109390.0,1.14370771]
[1748356679153,0.08670975,109400.0,109390.0,1.13827712]
[1748356679448,0.28033371,109400.0,109390.0,1.23001025]
[1748356679653,0.28033371,109400.0,109390.0,0.50636]
[1748356679654,0.25975928,109400.0,109390.0,0.50636]
[1748356680493,0.26827083,109400.0,109390.0,0.50636]
[1748356680706,0.25975928,109400.0,109390.0,0.50636]
[1748356680929,0.26827086,109400.0,109390.0,0.50636]
[1748356681144,0.25975928,109400.0,109390.0,0.10636]
[1748356681580,0.25975928,109400.0,109390.0,0.65661584]
[1748356681581,0.08545576,109400.0,109390.0,0.65661584]
[1748356681804,0.27803981,109400.0,109390.0,0.64747492]
[1748356682016,0.25913167,109400.0,109390.0,0.44636]
[1748356682232,0.26764466,109400.0,109390.0,0.84636]
[1748356682450,0.25913167,109400.0,109390.0,0.50636]
[1748356682667,0.26764317,109400.0,109390.0,0.84636]
[1748356683097,0.27615532,109400.0,109390.0,0.84636]
[1748356683337,0.26764317,109400.0,109390.0,0.84636]
[1748356683566,0.26764317,109400.0,109390.0,0.87920459]
[1748356683813,0.27615327,109400.0,109390.0,1.06203665]
[1748356684060,0.10310792,109400.0,109390.0,1.37431743]
[1748356684300,0.12075809,109400.0,109390.0,1.7767407]
[1748356684555,0.12075809,109400.0,109390.0,1.77674079]
[1748356684556,0.30357344,109400.0,109390.0,1.77674079]
[1748356684771,0.30356392,109400.0,109390.0,1.77674079]
[1748356684984,0.2950647,109400.0,109390.0,1.77674079]
[1748356685202,0.2950647,109400.0,109390.0,1.71756987]
[1748356685432,0.28592444,109400.0,109390.0,1.62287487]
[1748356685885,0.27678393,109400.0,109390.0,1.62287487]
[1748356686533,0.27678393,109400.0,109390.0,1.61373369]
[1748356686768,0.09396858,109400.0,109390.0,1.62287487]
[1748356687021,0.29442543,109400.0,109390.0,1.63201588]
[1748356687257,0.29506446,109400.0,109390.0,1.62287487]
[1748356688175,0.29506446,109400.0,109390.0,1.61373369]
[1748356688433,0.29506446,109400.0,109390.0,1.62287487]
[1748356688894,0.28592428,109400.0,109390.0,1.58481569]
[1748356689125,0.29442942,109400.0,109390.0,1.58481569]
[1748356689357,0.28592428,109400.0,109390.0,1.58481569]
[1748356689609,0.28592428,109400.0,109390.0,1.88131569]
[1748356690095,0.29442941,109400.0,109390.0,1.88131569]
[1748356690315,0.27678385,109400.0,109390.0,1.88131586]
[1748356690547,0.26764325,109400.0,109390.0,1.88131586]
[1748356690805,0.27614846,109400.0,109390.0,1.88131586]
[1748356691046,0.26764325,109400.0,109390.0,1.89959847]
[1748356691509,0.08482715,109400.0,109390.0,1.9997931]
[1748356691723,0.30420422,109400.0,109390.0,2.3942731]
[1748356691993,0.29442871,109400.0,109390.0,2.38513192]
[1748356692226,0.30356935,109400.0,109390.0,2.38513192]
[1748356692445,0.29506421,109400.0,109390.0,2.41813192]
[1748356692656,0.30420497,109400.0,109390.0,2.41813192]
[1748356693086,0.29506488,109400.0,109390.0,2.09237481]
[1748356693302,0.26764325,109400.0,109390.0,1.03098]
[1748356693524,0.26764325,109400.0,109390.0,1.13498]
[1748356693525,0.27615723,109400.0,109390.0,1.13498]
[1748356693747,0.08420112,109400.0,109390.0,3.57878065]
[1748356693956,0.09271524,109400.0,109390.0,2.85181565]
[1748356694167,0.09271549,109400.0,109390.0,2.85181565]
[1748356694381,0.08420112,109400.0,109390.0,2.85181565]
[1748356694622,0.08420112,109400.0,109390.0,4.81668365]
[1748356694886,0.08420112,109400.0,109390.0,4.7334275]
[1748356695337,0.002,109410.0,109400.0,0.76253552]
[1748356695551,0.002,109410.0,109400.0,2.94833833]
[1748356695770,0.002,109410.0,109400.0,2.61319633]
[1748356696440,0.002,109410.0,109400.0,2.62773718]
[1748356696661,0.02027893,109410.0,109400.0,0.85419498]
[1748356696884,0.22135701,109410.0,109400.0,0.85610393]
[1748356697099,0.23049694,109410.0,109400.0,0.78416111]
[1748356697334,0.01828461,109380.0,109370.0,0.027419]
[1748356697551,0.18284878,109380.0,109370.0,0.104]
[1748356697804,0.18514277,109380.0,109370.0,0.104]
[1748356698018,0.1920086,109370.0,109360.0,0.002]
[1748356698231,0.75673805,109370.0,109360.0,0.002]
[1748356700207,0.75637805,109370.0,109360.0,0.002]
[1748356700633,0.44481805,109370.0,109360.0,0.002]
[1748356700851,0.75617805,109370.0,109360.0,0.002]
[1748356701096,0.847232,109370.0,109360.0,0.00249613]
[1748356701527,0.68298165,109370.0,109360.0,0.00249613]
[1748356701752,0.65110165,109370.0,109360.0,0.00249613]
[1748356702218,0.5029286,109370.0,109360.0,0.10649613]
[1748356702898,0.1920086,109370.0,109360.0,0.10649613]
[1748356703108,0.1920086,109370.0,109360.0,0.44649613]
[1748356703362,0.1920086,109370.0,109360.0,0.00249613]
[1748356703585,0.34726255,109370.0,109360.0,0.00249613]
[1748356703809,0.4349998,109370.0,109360.0,0.00249613]
[1748356704955,0.44138083,109370.0,109360.0,0.00249613]
[1748356705167,0.3618034,109370.0,109360.0,0.00249613]
[1748356705391,0.19202616,109360.0,109350.0,0.10404]
[1748356705600,0.20116951,109360.0,109350.0,0.30522841]
[1748356705814,0.03381466,109360.0,109350.0,0.31437277]
[1748356706027,0.22584023,109360.0,109350.0,0.30522841]
[1748356706487,0.22584023,109360.0,109350.0,0.31437293]
[1748356706700,0.01552686,109360.0,109350.0,0.63383729]
[1748356706964,0.00638351,109360.0,109350.0,1.83952427]
[1748356707201,0.00638351,109360.0,109350.0,1.73548427]
[1748356707422,0.00638351,109360.0,109350.0,2.14984427]
[1748356708135,0.00638351,109360.0,109350.0,2.17726627]
[1748356708573,0.00638351,109360.0,109350.0,3.12834527]
[1748356709041,0.002,109390.0,109380.0,0.61487508]
[1748356709262,0.002,109390.0,109380.0,2.81680803]
[1748356709483,0.002,109390.0,109380.0,2.77883003]
[1748356709703,0.002,109390.0,109380.0,2.75480903]
[1748356709916,0.01114093,109390.0,109380.0,2.60827003]
[1748356710173,0.01114093,109390.0,109380.0,3.38284103]
[1748356710388,0.20311467,109390.0,109380.0,2.46727339]
[1748356710601,0.20311467,109390.0,109380.0,1.98741549]
[1748356710811,0.20311467,109390.0,109380.0,2.38741549]
[1748356711060,0.20311467,109390.0,109380.0,1.57373549]
[1748356711280,0.20311467,109390.0,109380.0,1.99643751]
[1748356711721,0.20311467,109390.0,109380.0,1.0365]
[1748356711956,0.20311467,109390.0,109380.0,1.8447]
[1748356712172,0.20311467,109390.0,109380.0,1.28754878]
[1748356712391,0.19397349,109390.0,109380.0,0.72953121]
[1748356712619,0.19397349,109390.0,109380.0,1.15223348]
[1748356713071,0.19397349,109390.0,109380.0,1.14309121]
[1748356713285,0.19397349,109390.0,109380.0,1.15314656]
[1748356713503,0.19397349,109390.0,109370.0,1.38120877]
[1748356713504,0.19199105,109380.0,109370.0,1.38120877]
[1748356713730,0.21027525,109380.0,109370.0,1.15268198]
[1748356713992,0.18284878,109380.0,109350.0,1.04453109]
[1748356714203,0.02742914,109370.0,109360.0,1.30074696]
[1748356714418,0.21029464,109370.0,109360.0,1.30989056]
[1748356714635,0.01828595,109370.0,109360.0,1.30074696]
[1748356714847,0.01828595,109370.0,109360.0,1.30989048]
[1748356715068,0.21029472,109370.0,109360.0,0.34]
[1748356715292,0.20115187,109370.0,109360.0,0.80808]
[1748356715515,0.20115187,109370.0,109360.0,0.4986]
[1748356715734,0.20115187,109370.0,109360.0,0.80808]
[1748356715949,0.0111411,109390.0,109380.0,0.2011329]
[1748356716165,0.22139737,109390.0,109380.0,0.19199105]
[1748356716402,0.22139737,109390.0,109370.0,1.03386615]
[1748356716403,0.21027491,109380.0,109370.0,1.03386615]
[1748356716614,0.02742596,109380.0,109370.0,1.6869312]
[1748356716826,0.2285592,109380.0,109370.0,0.88414217]
[1748356717048,0.03656807,109380.0,109370.0,0.89328485]
[1748356717296,0.21941743,109380.0,109370.0,1.09539662]
[1748356717503,0.02742622,109380.0,109370.0,1.11368224]
[1748356718002,0.210275,109380.0,109370.0,0.69101956]
[1748356718221,0.02742622,109380.0,109370.0,1.11368224]
[1748356718444,0.02742579,109380.0,109370.0,1.10453872]
[1748356718669,0.03656806,109380.0,109370.0,1.10453872]
[1748356718917,0.21027566,109380.0,109370.0,1.07092977]
[1748356719127,0.01828445,109380.0,109370.0,1.36184479]
[1748356719348,0.21027566,109380.0,109370.0,1.40662941]
[1748356719566,0.20113348,109380.0,109370.0,1.076479]
[1748356719785,0.20113348,109380.0,109370.0,1.2593445]
[1748356720006,0.20113348,109380.0,109370.0,0.367419]
[1748356720250,0.1828655,109370.0,109360.0,1.08844499]
[1748356720472,0.20115137,109370.0,109360.0,1.70597685]
[1748356720694,0.1920086,109370.0,109360.0,0.507228]
[1748356720957,0.265205,109370.0,109360.0,0.242885]
[1748356721196,0.35625895,109370.0,109360.0,0.10308]
[1748356721446,0.41845895,109370.0,109360.0,0.10308]
[1748356721691,0.41845895,109370.0,109350.0,0.73605512]
[1748356721692,0.19202616,109360.0,109350.0,0.73605512]
[1748356721932,0.28308011,109360.0,109350.0,0.49913512]
[1748356722176,0.28308011,109360.0,109350.0,0.39605512]
[1748356722415,0.28308011,109360.0,109350.0,0.49913512]
[1748356722653,0.28308011,109360.0,109350.0,0.39605512]
[1748356722873,0.28308011,109360.0,109350.0,0.49913512]
[1748356724092,0.41264566,109360.0,109350.0,0.49913512]
[1748356724315,0.19202616,109360.0,109350.0,0.49913512]
[1748356724775,0.28308011,109360.0,109350.0,0.49913512]
[1748356725226,0.28308011,109360.0,109350.0,0.39605512]
[1748356725504,0.28308011,109360.0,109350.0,0.49913512]
[1748356725724,0.19202616,109360.0,109350.0,0.49913512]
[1748356726677,0.20117002,109360.0,109350.0,0.49913512]
[1748356726917,0.19202616,109360.0,109350.0,0.49913512]
[1748356727134,0.19202616,109360.0,109350.0,0.69117892]
[1748356727377,0.0219113,109370.0,109360.0,0.20117019]
[1748356727583,0.0219113,109370.0,109360.0,0.19202633]
[1748356727584,0.20707079,109370.0,109360.0,0.19202633]
[1748356727811,0.2047768,109370.0,109360.0,0.20117035]
[1748356728020,0.01828729,109360.0,109350.0,2.1053021]
[1748356728243,0.01828729,109360.0,109350.0,2.53641905]
[1748356728465,0.02743123,109360.0,109350.0,2.53641905]
[1748356728910,0.20346392,109360.0,109350.0,1.03255512]
[1748356729184,0.20116993,109360.0,109350.0,0.74107512]
[1748356729611,0.20116993,109360.0,109350.0,0.40107512]
[1748356730250,0.29222388,109360.0,109350.0,0.00149512]
[1748356730495,0.29222388,109360.0,109350.0,0.10461512]
[1748356730704,0.29222388,109360.0,109350.0,0.00149512]
[1748356730916,0.29222388,109360.0,109350.0,0.10461512]
[1748356731128,0.33855425,109360.0,109350.0,0.10461512]
[1748356732444,0.33855425,109360.0,109350.0,0.00149512]
[1748356732663,0.47505065,109360.0,109350.0,0.00149512]
[1748356732897,0.40185425,109360.0,109350.0,0.10461512]
[1748356733179,0.48142813,109360.0,109350.0,0.00149512]
[1748356733405,0.48780567,109360.0,109350.0,0.00149512]
[1748356733621,0.50872426,109360.0,109350.0,0.00149512]
[1748356733848,0.50872429,109360.0,109350.0,0.00149512]
[1748356734083,0.51872429,109360.0,109350.0,0.00149512]
[1748356734357,0.84872429,109360.0,109350.0,0.00149512]
[1748356734602,0.25774372,109350.0,109340.0,0.001]
[1748356734810,0.66827767,109350.0,109340.0,0.001]
[1748356735272,0.36333852,109350.0,109340.0,0.001]
[1748356735505,0.7642118,109350.0,109340.0,0.001]
[1748356735726,1.08783833,109350.0,109340.0,0.001]
[1748356736186,1.09421002,109350.0,109340.0,0.001]
[1748356736405,1.15421002,109350.0,109340.0,0.001]
[1748356736615,0.70197732,109350.0,109340.0,0.001]
[1748356736849,0.70834975,109350.0,109340.0,0.001]
[1748356737103,0.70197732,109350.0,109340.0,0.001]
[1748356737745,0.38882962,109350.0,109340.0,0.001]
[1748356737968,0.34975732,109350.0,109340.0,0.001]
[1748356738202,0.65923732,109350.0,109340.0,0.001]
[1748356738424,0.74968649,109350.0,109340.0,0.001]
[1748356738857,0.77968649,109350.0,109340.0,0.001]
[1748356739332,0.78605765,109350.0,109340.0,0.001]
[1748356739544,0.77968649,109350.0,109340.0,0.001]
[1748356739977,0.78605718,109350.0,109340.0,0.001]
[1748356740187,0.77968649,109350.0,109340.0,0.001]
[1748356741066,0.78605715,109350.0,109340.0,0.001]
[1748356741325,0.77968649,109350.0,109340.0,0.001]
[1748356741763,0.78605716,109350.0,109340.0,0.001]
[1748356742434,0.78605744,109350.0,109340.0,0.001]
[1748356742678,0.78605735,109350.0,109340.0,0.001]
[1748356742952,0.77968649,109350.0,109340.0,0.001]
[1748356743189,0.06,109340.0,109320.0,0.002]
[1748356743425,0.69069384,109330.0,109320.0,0.002]
[1748356743640,0.69069384,109330.0,109320.0,0.0105685]
[1748356743641,0.68839985,109330.0,109320.0,0.0105685]
[1748356743862,0.68476916,109330.0,109320.0,0.01056853]
[1748356744096,0.64829985,109330.0,109320.0,0.01056853]
[1748356744358,0.74572315,109330.0,109320.0,0.01056853]
[1748356744602,0.75209276,109330.0,109320.0,0.01056853]
[1748356745310,0.44898147,109330.0,109320.0,0.01056853]
[1748356745547,0.30501796,109330.0,109320.0,0.01056853]
[1748356745799,0.62727695,109330.0,109320.0,0.01056853]
[1748356746039,0.61453796,109330.0,109320.0,0.01056853]
[1748356746275,0.61449796,109330.0,109320.0,0.01056853]
[1748356746513,0.70199741,109330.0,109320.0,0.01056853]
[1748356746753,0.72016711,109330.0,109320.0,0.01056853]
[1748356746995,0.79043767,109330.0,109320.0,0.01056853]
[1748356747239,0.78406711,109330.0,109320.0,0.01056853]
[1748356747480,0.83406711,109330.0,109320.0,0.01056853]
[1748356747961,0.79043736,109330.0,109320.0,0.01056853]
[1748356748202,0.72016711,109330.0,109320.0,0.01056853]
[1748356748444,0.77016711,109330.0,109320.0,0.01056853]
[1748356749152,0.77653637,109330.0,109320.0,0.01056853]
[1748356749383,0.83316711,109330.0,109320.0,0.01056853]
[1748356749679,0.52368711,109330.0,109320.0,0.01056853]
[1748356749899,0.83316711,109330.0,109320.0,0.01056853]
[1748356750141,0.83953462,109330.0,109320.0,0.01056853]
[1748356750848,0.40705462,109330.0,109320.0,0.01056853]
[1748356751064,0.71653462,109330.0,109320.0,0.01056853]
[1748356751289,0.78436711,109330.0,109320.0,0.01056853]
[1748356751511,1.61053507,109330.0,109320.0,0.01056853]
[1748356751744,1.61687104,109330.0,109320.0,0.01056853]
[1748356752002,1.60917308,109330.0,109320.0,0.01056853]
[1748356752241,1.62414486,109330.0,109320.0,0.01056853]
[1748356752479,1.61780908,109330.0,109320.0,0.01056853]
[1748356752709,1.62414249,109330.0,109320.0,0.01056853]
[1748356752945,1.61780908,109330.0,109320.0,0.01056853]
[1748356753656,1.6241426,109330.0,109320.0,0.01056853]
[1748356753906,1.61780908,109330.0,109320.0,0.01056853]
[1748356754149,1.61780908,109330.0,109310.0,0.00557454]
[1748356754150,0.60124362,109320.0,109310.0,0.00557454]
[1748356754397,0.19211399,109310.0,109300.0,0.002]
[1748356754640,0.77607675,109310.0,109300.0,0.002]
[1748356754887,0.80687675,109310.0,109300.0,0.002]
[1748356755136,1.64760675,109310.0,109300.0,0.002]
[1748356755372,1.7386607,109310.0,109300.0,0.002]
[1748356755616,1.74728407,109310.0,109300.0,0.002]
[1748356755857,1.74777858,109310.0,109300.0,0.002]
[1748356756087,1.75410508,109310.0,109300.0,0.002]
[1748356756388,0.6076433,109310.0,109300.0,0.002]
[1748356756633,0.28366245,109310.0,109300.0,0.002]
[1748356756876,0.28366245,109310.0,109300.0,0.0651]
[1748356759307,0.1926085,109310.0,109300.0,0.0651]
[1748356759543,0.32121821,109310.0,109300.0,0.002]
[1748356760036,0.64519906,109310.0,109300.0,0.002]
[1748356760297,0.71879906,109310.0,109300.0,0.002]
[1748356760535,0.76879906,109310.0,109300.0,0.002]
[1748356761767,1.10879906,109310.0,109300.0,0.002]
[1748356762029,1.48496702,109310.0,109300.0,0.002]
[1748356762289,1.49129464,109310.0,109300.0,0.002]
[1748356762765,1.49129464,109310.0,109280.0,0.0211]
[1748356762766,0.21583954,109290.0,109280.0,0.0211]
[1748356762979,0.35277721,109290.0,109280.0,0.0211]
[1748356764016,0.66217721,109290.0,109280.0,0.0211]
[1748356765007,0.66217721,109290.0,109280.0,0.5211]
[1748356766851,1.26582517,109290.0,109280.0,0.5211]
[1748356767074,1.26582517,109290.0,109280.0,0.43015936]
[1748356767075,0.94002082,109290.0,109280.0,0.43015936]
[1748356767305,0.75551394,109290.0,109280.0,0.43015936]
[1748356767527,1.14679249,109290.0,109280.0,0.22635438]
[1748356767744,1.55990145,109290.0,109280.0,0.22635438]
[1748356767958,0.74065899,109290.0,109280.0,0.22635438]
[1748356768181,0.60801916,109290.0,109280.0,0.22635438]
[1748356768407,0.61956825,109290.0,109280.0,0.22635438]
[1748356768662,0.6341091,109290.0,109280.0,0.22635438]
[1748356769325,0.3247491,109290.0,109280.0,0.22635438]
[1748356769540,0.6341091,109290.0,109280.0,0.22635438]
[1748356770278,0.9741091,109290.0,109280.0,0.22635438]
[1748356770517,1.0241091,109290.0,109280.0,0.22635438]
[1748356770758,1.53337706,109290.0,109280.0,0.22635438]
[1748356771029,1.1595527,109290.0,109280.0,0.22635438]
[1748356771301,1.03274474,109290.0,109280.0,0.22635438]
[1748356771524,1.0241091,109290.0,109280.0,0.22635438]
[1748356772830,1.03043338,109290.0,109280.0,0.22635438]
[1748356773265,1.03043338,109290.0,109280.0,0.22435438]
[1748356774124,0.72107338,109290.0,109280.0,0.22435438]
[1748356774359,0.72107338,109290.0,109280.0,0.28565438]
[1748356774360,0.30498344,109290.0,109280.0,0.28565438]
[1748356774581,0.30498344,109290.0,109280.0,0.38873438]
[1748356774814,0.21392949,109290.0,109280.0,0.38873438]
[1748356775041,0.0126308,109290.0,109280.0,1.00339234]
[1748356775322,0.0126308,109290.0,109280.0,1.99143079]
[1748356775323,0.21389411,109290.0,109280.0,1.99143079]
[1748356775556,0.21389478,109290.0,109280.0,0.78471248]
[1748356775783,0.21389478,109290.0,109280.0,0.28565438]
[1748356775784,0.19559561,109290.0,109280.0,0.28565438]
[1748356776006,0.01259601,109290.0,109280.0,0.80867048]
[1748356776231,0.01259567,109290.0,109280.0,2.02386479]
[1748356776447,0.02174521,109290.0,109280.0,2.01255279]
[1748356776679,0.22304407,109290.0,109280.0,1.07423838]
[1748356776900,0.20474524,109290.0,109280.0,1.07423838]
[1748356777348,0.20474524,109290.0,109280.0,0.72873438]
[1748356779784,0.20474524,109290.0,109280.0,0.91175048]
[1748356780004,0.00344638,109290.0,109280.0,1.48025918]
[1748356780219,0.00344638,109290.0,109280.0,5.01018618]
[1748356780448,0.00344638,109290.0,109280.0,4.55924518]
[1748356780666,0.01259559,109290.0,109280.0,4.53874318]
[1748356780882,0.01259559,109290.0,109280.0,4.07627618]
[1748356781111,0.01259559,109290.0,109280.0,4.06615518]
[1748356781331,0.22304391,109290.0,109280.0,1.5801915]
[1748356781541,0.20474524,109290.0,109280.0,1.22834372]
[1748356781775,0.20474524,109290.0,109280.0,1.41135982]
[1748356782000,0.0308951,109290.0,109280.0,1.87497909]
[1748356782227,0.23219429,109290.0,109280.0,1.86582888]
[1748356782476,0.20474557,109290.0,109280.0,1.22834372]
[1748356782702,0.19559569,109290.0,109280.0,1.22834372]
[1748356783608,0.19559569,109290.0,109280.0,1.41135982]
[1748356783837,0.19559569,109290.0,109280.0,1.42966117]
[1748356784346,0.19559569,109290.0,109280.0,1.70843262]
[1748356784572,0.19559569,109290.0,109280.0,1.22834372]
[1748356784992,0.19559569,109290.0,109280.0,1.13728977]
[1748356785579,0.19559569,109290.0,109280.0,1.03444977]
[1748356785763,0.19559569,109290.0,109280.0,1.13728977]
[1748356787519,0.05344638,109290.0,109280.0,1.77477502]
[1748356787739,0.2638947,109290.0,109280.0,2.47544197]
[1748356787960,0.07174555,109290.0,109280.0,1.76786085]
[1748356788217,0.09004414,109290.0,109280.0,2.20402881]
[1748356788860,0.09919394,109290.0,109280.0,2.20402881]
[1748356789072,0.06259559,109290.0,109280.0,2.20402881]
[1748356789280,0.05344638,109290.0,109280.0,2.20402881]
[1748356789584,0.05344638,109290.0,109280.0,2.23146781]
[1748356789977,0.06259567,109290.0,109280.0,2.63146781]
[1748356790168,0.05344638,109290.0,109280.0,2.63146781]
[1748356790793,0.06259559,109290.0,109280.0,2.63146781]
[1748356791479,0.05344638,109290.0,109280.0,4.13776581]
[1748356791709,0.06259559,109290.0,109280.0,4.13776581]
[1748356791940,0.06259559,109290.0,109280.0,4.06122381]
[1748356792176,0.07174488,109290.0,109280.0,4.06122381]
[1748356792406,0.07174488,109290.0,109280.0,4.06170381]
[1748356793366,0.08089426,109290.0,109280.0,3.79880581]
[1748356793633,0.28219295,109290.0,109280.0,2.99526313]
[1748356793875,0.26389495,109290.0,109280.0,2.16606001]
[1748356794149,0.26389495,109290.0,109280.0,0.66692877]
[1748356794150,0.25474456,109290.0,109280.0,0.66692877]
[1748356794399,0.25474507,109290.0,109280.0,0.23818977]
[1748356794692,0.39689139,109290.0,109280.0,0.23818977]
[1748356795134,0.34579902,109290.0,109280.0,0.23818977]
[1748356795378,0.25474507,109290.0,109280.0,0.30098977]
[1748356795595,0.25474507,109290.0,109280.0,0.40382977]
[1748356795804,0.25474507,109290.0,109280.0,0.34102977]
[1748356800407,0.27304407,109290.0,109280.0,0.9338965]
[1748356800651,0.25474524,109290.0,109280.0,0.74172977]
[1748356800875,0.25474524,109290.0,109280.0,0.68102977]
[1748356801399,0.25474524,109290.0,109280.0,0.34102977]
[1748356802112,0.25474524,109290.0,109280.0,0.52404587]
[1748356802347,0.25474524,109290.0,109280.0,0.34102977]
[1748356804681,0.25474524,109290.0,109280.0,0.68783714]
[1748356804920,0.27304441,109290.0,109280.0,0.60604697]
[1748356805148,0.2547454,109290.0,109280.0,0.30188977]
[1748356805393,0.2547454,109290.0,109280.0,0.5968965]
[1748356805629,0.06259559,109290.0,109280.0,1.80212713]
[1748356805858,0.09004422,109290.0,109280.0,1.88133677]
[1748356806088,0.08089434,109290.0,109280.0,2.22656409]
[1748356806358,0.08089434,109290.0,109280.0,2.71556409]
[1748356806610,0.09004405,109290.0,109280.0,2.71556409]
[1748356806841,0.08089434,109290.0,109280.0,2.71556409]
[1748356807069,0.09004397,109290.0,109280.0,2.71556409]
[1748356807295,0.09919368,109290.0,109280.0,2.27939613]
[1748356807579,0.09004397,109290.0,109280.0,2.27939613]
[1748356808702,0.09004397,109290.0,109280.0,2.67939613]
[1748356809168,0.09004397,109290.0,109280.0,2.53830113]
[1748356809399,0.2821932,109290.0,109280.0,1.19228372]
[1748356809623,0.25474524,109290.0,109280.0,0.89339659]
[1748356809847,0.25474524,109290.0,109280.0,1.02131114]
[1748356810786,0.05344638,109290.0,109280.0,1.1588017]
[1748356811011,0.27304424,109290.0,109280.0,0.71715377]
[1748356811233,0.2547454,109290.0,109280.0,0.90222722]
[1748356811452,0.2547454,109290.0,109280.0,0.89307659]
[1748356811674,0.2547454,109290.0,109280.0,0.70090977]
[1748356811895,0.2547454,109290.0,109280.0,0.89307667]
[1748356812107,0.2547454,109290.0,109280.0,0.91137802]
[1748356812324,0.2547454,109290.0,109280.0,0.79970739]
[1748356812559,0.24559569,109290.0,109280.0,0.90222739]
[1748356812791,0.23644573,109290.0,109280.0,0.53468977]
[1748356813038,0.23644573,109290.0,109280.0,0.23818977]
[1748356813039,0.74981719,109290.0,109280.0,0.23818977]
[1748356813286,0.74981719,109290.0,109280.0,0.22435438]
[1748356813744,0.63613968,109290.0,109280.0,0.22435438]
[1748356814415,0.23644573,109290.0,109280.0,0.22435438]
[1748356815089,0.23644573,109290.0,109280.0,0.23789487]
[1748356815354,0.23644573,109290.0,109280.0,0.34045487]
[1748356815822,0.25474507,109290.0,109280.0,0.37355487]
[1748356816047,0.25474507,109290.0,109280.0,0.34045487]
[1748356817392,0.29833429,109290.0,109280.0,0.34045487]
[1748356818073,0.25474507,109290.0,109280.0,0.34045487]
[1748356818758,0.24559553,109290.0,109280.0,0.34045487]
[1748356819883,0.05344638,109290.0,109280.0,1.74241033]
[1748356820108,0.05344638,109290.0,109280.0,3.55235628]
[1748356820347,0.06259567,109290.0,109280.0,3.03710028]
[1748356820778,0.05344638,109290.0,109280.0,3.30515628]
[1748356820997,0.06259567,109290.0,109280.0,3.24420628]
[1748356821223,0.06259567,109290.0,109280.0,2.98081128]
[1748356822084,0.07174505,109290.0,109280.0,2.98058228]
[1748356822295,0.07174505,109290.0,109280.0,2.89607428]
[1748356822973,0.07174505,109290.0,109280.0,2.58755428]
[1748356823206,0.07174505,109290.0,109280.0,2.20901032]
[1748356823419,0.08089459,109290.0,109280.0,2.40669928]
[1748356823634,0.07174505,109290.0,109280.0,2.40669928]
[1748356824067,0.07174505,109290.0,109280.0,2.80669928]
[1748356824587,0.06259567,109290.0,109280.0,2.80669928]
[1748356824819,0.05344638,109290.0,109280.0,5.01829228]
[1748356825040,0.05344638,109290.0,109280.0,4.68278628]
[1748356825276,0.07174497,109290.0,109280.0,4.68278628]
[1748356825513,0.07174497,109290.0,109280.0,4.65547628]
[1748356825753,0.06259559,109290.0,109280.0,4.71747428]
[1748356825986,0.07174497,109290.0,109280.0,4.71747428]
[1748356826462,0.07174497,109290.0,109280.0,5.07201513]
[1748356826463,0.05344638,109290.0,109280.0,5.07201513]
[1748356826739,0.02429743,109310.0,109300.0,0.27192898]
[1748356826974,0.23470725,109310.0,109300.0,1.49740835]
[1748356827193,0.21641184,109310.0,109300.0,0.25363174]
[1748356827428,0.21641184,109310.0,109300.0,0.30380078]
[1748356827653,0.21641184,109310.0,109300.0,0.42404045]
[1748356827886,0.21641184,109310.0,109300.0,0.43318907]
[1748356828116,0.03344597,109310.0,109300.0,0.43318848]
[1748356828390,0.21641184,109310.0,109300.0,0.49698848]
[1748356828832,0.03344514,109310.0,109300.0,0.93315644]
[1748356829081,0.23770717,109310.0,109300.0,0.101942]
[1748356829305,0.00914854,109300.0,109290.0,1.35488101]
[1748356829528,0.21941201,109310.0,109300.0,0.30380044]
[1748356829748,0.21941201,109310.0,109300.0,0.35439769]
[1748356829940,0.21941201,109310.0,109300.0,0.34524915]
[1748356830475,0.03344564,109310.0,109300.0,0.79056565]